Cogmind - Beta 11 @@@ ROGUE MODE // 2022.04.07 @ 13:10:03 Player: Virvatuli Result: Destroyed by G-34 Mercenary with Small Laser Performance ------------- Evolutions (0) 0 Regions Visited (1) 200 Robots Destroyed (2) 10 Value Destroyed (81) 81 Prototype IDs (3) 60 Alien Tech Used (0) 0 Bonus (0) 0 TOTAL SCORE: 351 Bonus ------- None Cogmind --------- Core Integrity 0/250 Matter 275/300 Energy 100/100 System Corruption 1% Temperature Cool (18) Movement Core (50) Location -10/Materials Parts ------- > --- POWER (1) -------- (None) > --- PROPULSION (2) --- (None) > --- UTILITY (2) ------ (None) > --- WEAPON (2) ------- Mining Claw > --- INVENTORY (5) ---- Ion Engine Sensor Array Signal Interpreter Datajack Peak State ------------ > --- POWER ------------ Ion Engine > --- PROPULSION ------- Aluminum Leg Aluminum Leg > --- UTILITY ---------- Improved Targeting Computer Improved Targeting Computer > --- WEAPON ----------- Improved Medium Laser Improved Medium Laser > --- INVENTORY -------- Ion Engine [Rating: 13] Favorites ----------- Power Ion Engine Engine Ion Engine Propulsion Aluminum Leg Leg Aluminum Leg Flight Unit Flight Unit Utility Improved Targeting Computer Device ECM Suite Storage Small Storage Unit Processor Improved Targeting Computer Weapon Improved Medium Laser Energy Gun Improved Medium Laser Ballistic Gun Light Assault Rifle Slashing Weapon Mining Claw Special Melee Weapon Datajack Build | -11 -10 ------- Run | Scr Mat Slots Evolved . | . . Power . | . . Propulsion . | . . Utility . | . . Weapon . | . . Parts Attached 22 | 8 14 Power 2 | 1 1 Engine 2 | 1 1 Core . | . . Reactor . | . . Propulsion 6 | 2 4 Treads . | . . Leg 3 | 2 1 Wheel . | . . Hover . | . . Flight 3 | . 3 Utility 6 | 1 5 Device 3 | . 3 Storage 1 | 1 . Processor 2 | . 2 Hackware . | . . Protection . | . . Artifact . | . . Weapon 8 | 4 4 Energy Gun 5 | 3 2 Energy Cannon . | . . Ballistic Gun 1 | 1 . Ballistic Cannon . | . . Launcher . | . . Special Weapon . | . . Impact Weapon . | . . Slashing Weapon 1 | . 1 Piercing Weapon . | . . Special Melee Weapon 1 | . 1 Unidentified Prototypes 1 | . 1 Parts Lost 5 | . 5 Power 1 | . 1 Propulsion 3 | . 3 Utility 1 | . 1 Weapon . | . . Highest Loss Streak 5 | . 5 To Critical Strikes . | . . Average Slot Usage (%) 81 | . 81 Engine 14 | . 14 Leg 13 | . 13 Flight 13 | . 13 Device 9 | . 9 Processor 9 | . 9 Energy Gun 11 | . 11 Special Melee Weapon 7 | . 7 Naked Turns . | . . Heaviest Build 14 | 14 14 Greatest Support 20 | 20 20 Greatest Overweight (x) 2 | . 2 Average Overweight (x) . | . . Largest Inventory Capacity 8 | 8 8 Average Capacity 5 | 6 5 Most Carried 6 | 6 6 Average Carried 3 | 3 3 Final Capacity 8 | 8 5 Final Carried 6 | 6 4 Class Distribution -------------------- 100% | Mutant Dominant Class ---------------- Mutant | -10/Materials Resources | -11 -10 ----------- Run | Scr Mat Matter Collected 338 | 232 106 Remotely . | . . Salvage Created 106 | . 106 Parts 2 | . 2 Haulers Intercepted . | . . Recyclers Shooed . | . . Parts Field Recycled . | . . Retrieved Matter . | . . Parts Self-Destructed . | . . Prevented . | . . Kills | -11 -10 ------- Run | Scr Mat Combat Hostiles Destroyed 2 | . 2 Guns 2 | . 2 Classes Destroyed 1 | . 1 Grunt 2 | . 2 Best Kill Streak 2 | . 2 Combat Bots Only 2 | . 2 Max Kills in Single Turn 1 | . 1 Gunslinging . | . . Exploded . | . . Melee . | . . Uniques/NPCs Destroyed . | . . Combat | -11 -10 -------- Run | Scr Mat Damage Taken 608 | . 608 Core 256 | . 256 Absorbed by Shields . | . . Core Remaining (%) 100 | 100 . Volleys Fired 10 | 1 9 Largest 2 | 1 2 Hottest 112 | 40 112 Shots Fired 19 | 1 18 Gun 19 | 1 18 Cannon . | . . Launcher . | . . Special . | . . Kinetic . | . . Thermal 18 | . 18 Explosive . | . . Electromagnetic 1 | 1 . Robot Hit Streak 7 | 1 7 Robot Miss Streak 3 | . 3 Penetration Max . | . . Secondary Targets . | . . Shots Hit Robots 28 | 1 27 Core Hits 3 | . 3 Critical Kills . | . . Critical Parts Destroyed . | . . Critical Strikes 2 | . 2 Burn 2 | . 2 Melee Attacks 20 | . 20 Impact . | . . Slashing 3 | . 3 Piercing . | . . Sneak Attacks 4 | . 4 Combat Hostiles . | . . Follow-up Attacks . | . . Damage Inflicted 277 | 13 264 Guns 252 | 13 239 Cannons . | . . Explosions . | . . Melee 25 | . 25 Ramming . | . . Kinetic . | . . Thermal 239 | . 239 Explosive . | . . Electromagnetic 13 | 13 . Impact . | . . Slashing 25 | . 25 Piercing . | . . Highest Corruption 1 | . 1 Average Corruption 1 | . 1 Corruption Purged . | . . Corruption Blocked . | . . Effects 2 | . 2 Heat Flow Errors 1 | . 1 Energy Discharges 1 | . 1 Overload Shots . | . . Overflow Damage . | . . Projectiles . | . . Explosions . | . . Melee . | . . Knockbacks . | . . Impact . | . . Kinetic . | . . Secondary . | . . Self-Inflicted Damage . | . . Shots . | . . Rammed . | . . Targets Rammed . | . . Kicked . | . . Crushed . | . . Highest Temperature 393 | . 393 Average Temperature 147 | . 147 Received Heat Transfer 357 | . 357 Effects 2 | . 2 Shutdowns 1 | . 1 Short Circuit 1 | . 1 Siege Activations . | . . Robots Corrupted . | . . Combat Hostiles . | . . Parts Fried . | . . Impact Corruptions . | . . Robots Melted . | . . Combat Hostiles . | . . Parts Melted 1 | . 1 Heat Transferred 666 | . 666 Parts Sabotaged . | . . Parts Stolen . | . . Parts Stripped . | . . Power Chain Reactions . | . . Missiles Intercepted . | . . Alert | -11 -10 ------- Run | Scr Mat Peak Influence 100 | . 100 Initial . | . . Average 28 | . 32 Maximum Alert Level . | . . Low Security (%) 100 | 100 100 Level 1 . | . . Level 2 . | . . Level 3 . | . . Level 4 . | . . Level 5 . | . . High Security . | . . Max Security . | . . Squads Dispatched 2 | . 2 Investigation . | . . Extermination . | . . Reinforcement 2 | . 2 Assault . | . . Garrison . | . . Intercept . | . . Searches Triggered . | . . Construction Impeded . | . . Haulers Reinforced . | . . Active Scanning Responses . | . . Cargo Convoy Interrupts . | . . Stealth | -11 -10 --------- Run | Scr Mat Distress Signals . | . . Communications Jammed . | . . Distress Signals . | . . Times Spotted 15 | . 15 Peak Tracking Total 6 | . 6 Tactical Retreats 1 | . 1 Traps | -11 -10 ------- Run | Scr Mat Traps Triggered 1 | . 1 Indirectly . | . . Trap Hack Attempts . | . . Triggered . | . . Disarmed . | . . Reprogrammed . | . . Reused . | . . Traps Extracted . | . . Installed . | . . Triggered . | . . Machines | -11 -10 ---------- Run | Scr Mat Machines Disabled . | . . Max in Single Turn . | . . Machines Sabotaged . | . . Garrisons Compromised . | . . Overloaded Fab Kills . | . . Hacking | -11 -10 --------- Run | Scr Mat Machines Accessed 5 | . 5 Terminals 3 | . 3 Fabricators . | . . Repair Stations . | . . Recycling Units 2 | . 2 Scanalyzers . | . . Garrison Access . | . . Total Hacks 18 | . 18 Successful 11 | . 11 Failed 7 | . 7 Catastrophic 2 | . 2 Database Lockouts . | . . Manual 6 | . 6 Terminals 10 | . 10 Fabricators . | . . Repair Stations . | . . Recycling Units 8 | . 8 Scanalyzers . | . . Garrison Access . | . . Terminal Hacks 3 | . 3 Prototype ID Bank 1 | . 1 Locate Traps 1 | . 1 Hauler Manifests 1 | . 1 Fabricator Hacks . | . . Repair Station Hacks . | . . Recycling Unit Hacks 7 | . 7 Process 1 | . 1 Report Inventory 4 | . 4 Retrieve Matter 1 | . 1 Retrieve Components 1 | . 1 Scanalyzer . | . . Garrison Access Hacks . | . . Unauthorized Hacks 1 | . 1 Terminals 1 | . 1 Track 1 | . 1 Fabricators . | . . Repair Stations . | . . Recycling Units . | . . Scanalyzers . | . . Garrison Access . | . . Data Cores Recovered . | . . Used . | . . Hacking Detections 3 | . 3 Full Trace Events 3 | . 3 Feedback Events 1 | . 1 Corruption 1 | . 1 Feedback Blocked . | . . Robot Schematics Acquired . | . . Robots Built . | . . Authchips . | . . Time . | . . Total Robot Build Rating . | . . Part Schematics Acquired . | . . Parts Built . | . . Authchips . | . . Time . | . . Total Part Build Rating . | . . Parts Repaired . | . . Time . | . . Parts Recycled . | . . Recycled Matter 32 | . 32 Retrieved Matter 32 | . 32 Retrieved Components 3 | . 3 Parts Scanalyzed . | . . Part Schematics Acquired . | . . Parts Damaged . | . . Bothacking | -11 -10 ------------ Run | Scr Mat Used RIF Installer . | . . Robots Hacked 6 | . 6 Non-combat 5 | . 5 Combat 1 | . 1 Robot Hacks Applied 10 | . 10 parse_system 7 | . 7 no_distress 1 | . 1 find_recycling 1 | . 1 check_alert 1 | . 1 Relay Couplers Released . | . . Fabnet Peak Effective % . | . . Robots Rewired . | . . Allies Hacked . | . . Hacks Repelled . | . . Allies | -11 -10 -------- Run | Scr Mat Total Allies . | . . Largest Group . | . . Highest-Rated Group . | . . Highest-Rated Ally . | . . Total Orders . | . . Ally Attacks . | . . Total Damage . | . . Kills . | . . Allies Corrupted . | . . Allies Melted . | . . Intel | -11 -10 ------- Run | Scr Mat Robot Analysis Total . | . . Derelict Logs Recovered . | . . Drone Launches . | . . Drone Recoveries . | . . Exploration | -11 -10 ------------- Run | Scr Mat Turns Passed 625 | 82 543 Spaces Moved 737 | 54 683 Core 5 | 5 . Treads . | . . Legs 227 | 49 178 Wheels . | . . Hover . | . . Flight 505 | . 505 Fastest Speed 37 | 50 37 Average Speed 65 | 113 62 Slowest Speed 200 | 120 200 Overloaded Moves . | . . Propulsion Burnouts . | . . Robots Hopped 3 | . 3 Cave-ins Triggered . | . . Exploration Rate (%) 31 | 4 59 Regions Visited 1 Branch Regions . Pre-discovered Areas . | . . Known Exits Taken . | . . Unknown Exits Taken 1 | 1 . Scrap Searched . | . . Spaces Dug . | . . Terrain Destroyed . | . . Melee . | . . Projectile . | . . AOE . | . . Terrain Rammed . | . . Walls Destroyed . | . . Machines Disabled . | . . Actions | -11 -10 --------- Run | Scr Mat Total 846 | 72 774 Wait 21 | . 21 Move 730 | 53 677 Hop 3 | . 3 Pick Up 22 | 10 12 Fast Attach 2 | 1 1 Attach 13 | 5 8 Detach 3 | . 3 Swap 7 | 2 5 Drop 15 | . 15 Fire 10 | 1 9 Melee 20 | . 20 Ram . | . . Kick . | . . Crush . | . . Escape Stasis . | . . Rewire . | . . Trap . | . . Miscellaneous . | . . Route ------- -11/Scrapyard -10/Materials (discovered 2 exits: [*Mat] / [*Min]) History --------- Turn | Location | Event 5 | -11/Scrapyard | Discovered new exit (range 15) 83 | -11/Scrapyard | Entered Materials 272 | -10/Materials | Discovered new exit (range 13) 374 | -10/Materials | Build established: Mutant 424 | -10/Materials | Discovered new exit (range 13) 619 | -10/Materials | Core integrity fell below 50% 625 | -10/Materials | Core integrity fell below 20% 626 | -10/Materials | Destroyed by G-34 Mercenary with Small Laser Last Messages --------------- 00583_ O-16 Technician uses terminal to summon reinforcements. 00583_ ALERT: Hostiles spotted, dispatching reinforcements to Terminal M003. 00583_ O-16 Technician locks terminal. 00583_ Jacked O-16 Technician... >>check_alert Querying alert level: Low Security 00584_ Jacked O-16 Technician... >>parse_system Reading system data... 00585_ ALERT: Hostiles spotted, dispatching reinforcements to Terminal M001. 00590_ Jacked G-47 Trooper... >>parse_system Reading system data... 00593_ Flight Unit destroyed. 00609_ System corrupted: Energy discharge (-85). 00614_ Flight Unit destroyed. 00622_ ECM Suite destroyed. 00624_ Ion Engine destroyed. Map ----- +----------------------------------------------------+ | # ########???????????# #??????????? ????????? | | # #??????????????????# #?????????? ????????? | | # #??????????????????# #???????? [[ ???????? | | # #??????????????###### ##??????? [ ???????? | | # #??????????????# # #??????? ???????? | | # #??????????????# + #?????? #??????? | | # #??????????????# # ###### #??????? | | # #??????????????# # #??????? | | # #??????????????# # #??????? | | # ########???????# "" # #??????? | | # # """ #???????# T" # #######"""T"""#????????? | | # # "Y" ######### "" # a#??????######??????????? | | # # | #!!!! [## # ####### #??????????? | | # # ! # !! [####### t #??????????? | | # # # #?????# #??????????? | | # # ## #?????# #??????????? | | # ######+## #?????### ## #??????????? | | # #???????# #??? ##??????????? | | + T #???????# #?????#???????????? | | # #???????# #?????????????????? | | #### # #???????# #?????????????????? | | #??#! !## ##???????# #?????????????????? | | #??#! !## #?######## g ############??????? | | #??##!!!!### #?# #gg + #??????? | | #???######?# #?#] """ # gg # #??????? | | ???????????# #?# """g/@ # """ """ #??????? | | ???????????#####?#! """ ######## """ """ #??????? | | ?????????????????# """ #??????# """ """ #??????? | | ?????????????????# #??????# #??????? | | ?????????????????#######???????# #??????? | | ???????????????????????????????############??????? | | ?????????????????????????????????????????????????? | | | | | | | | | | | | | | | | | | | | | | | | | | | | | | | | | | | | | +----------------------------------------------------+ Best States ------------- Heat Dissipation 25 Energy Generation 10 Energy Capacity 250 Matter Stores 300 Matter Capacity 300 Sight Range 16 Robot Scan Range 14 Terrain Scan Density 10 ECM Strength 1 Evasion (%) 62 Targeting Accuracy 12 Item Schematics ----------------- None Robot Schematics ------------------ None Fabricated ------------ Nothing Alien Tech Used ----------------- None Achievements -------------- True Hacker Challenges ------------ None Game ------ Seed BoreBiometalEngine Manual? 0 Play Time 00:29:54 Cumulative 10.7 hours Start 2022.04.07 @ 12:09:11 End 2022.04.07 @ 13:10:03 Sessions 1 Manual Loads 0 Difficulty Rogue Special Mode None Game No. 19 Rogue 19 Adventurer 0 Explorer 0 Win Type - Total 0 Types 0/0/0/0/0/0/0/0/0 Lore% 13 Gallery% 18 Achievement% 17 Wizard Run 0 Options --------- ASCII 0 Keyboard 0 Movement Numpad Keybinds 0 Fullscreen 2 Font 18/SmallcapsGlow Map View 76x50 Tactical HUD 1 Map Filters NONE Filters NONE Steam 1 RUN: 4f6fbb2f-3889-4f0c-ac28-e84774986a9a